[Event "30e Open International de Saint Affrique"]
[Site "Saint Affrique, France"]
[Date "2024.07.20"]
[Round "1.1"]
[White "Lavilledieu, Pierre-Loup"]
[Black "Degraeve, Jean-Marc"]
[Result "0-1"]
[TimeControl "1h30/40 + 30min + sec/mv"]
[BlackTitle "GM"]
[WhiteElo "1774"]
[BlackElo "2480"]

1. d4 {[%clk 01:30:53]} {[%emt 00:00:06]} d6 {[%clk 01:30:46]} {[%emt
00:00:15]} 2. c4 {[%clk 01:30:45]} {[%emt 00:00:38]} e5 {[%clk 01:31:00]}
{[%emt 00:00:17]} 3. d5 {[%clk 01:29:53]} {[%emt 00:01:22]} f5 {[%clk
01:30:53]} {[%emt 00:00:37]} 4. Nc3 {[%clk 01:29:16]} {[%emt 00:01:07]} Nf6
{[%clk 01:30:31]} {[%emt 00:00:52]} 5. Bg5 {[%clk 01:27:41]} {[%emt 00:02:05]}
Be7 {[%clk 01:30:34]} {[%emt 00:00:28]} 6. Nf3 {[%clk 01:25:38]} {[%emt
00:02:33]} e4 {[%clk 01:28:22]} {[%emt 00:02:42]} 7. Nd4 {[%clk 01:22:40]}
{[%emt 00:03:27]} Nxd5 {[%clk 01:27:50]} {[%emt 00:01:03]} 8. Bxe7 {[%clk
01:13:42]} {[%emt 00:09:27]} Nxe7 {[%clk 01:28:11]} {[%emt 00:00:09]} 9. e3
{[%clk 01:13:28]} {[%emt 00:00:44]} O-O {[%clk 01:28:11]} {[%emt 00:00:30]} 10.
Be2 {[%clk 01:10:23]} {[%emt 00:03:35]} a6 {[%clk 01:17:04]} {[%emt 00:11:38]}
11. O-O {[%clk 01:04:47]} {[%emt 00:06:04]} c5 {[%clk 01:15:46]} {[%emt
00:01:49]} 12. Nc2 {[%clk 01:03:40]} {[%emt 00:01:37]} Nbc6 {[%clk 01:15:24]}
{[%emt 00:00:52]} 13. f3 {[%clk 01:01:29]} {[%emt 00:02:41]} exf3 {[%emt
00:00:47]} 14. Bxf3 {[%clk 01:00:05]} {[%emt 00:01:52]} Ne5 {[%clk 01:15:28]}
{[%emt 00:00:11]} 15. b3 {[%clk 00:56:36]} {[%emt 00:03:59]} Rb8 {[%clk
01:14:44]} {[%emt 00:01:14]} 16. e4 {[%clk 00:51:59]} {[%emt 00:05:07]} f4
{[%clk 01:10:19]} {[%emt 00:04:55]} 17. Qe2 {[%clk 00:47:24]} {[%emt 00:05:05]}
g5 {[%clk 01:05:09]} {[%emt 00:05:40]} 18. h3 {[%clk 00:40:08]} {[%emt
00:07:47]} N7g6 {[%clk 01:04:25]} {[%emt 00:01:14]} 19. Ne1 {[%clk 00:38:58]}
{[%emt 00:01:40]} b5 {[%clk 01:03:52]} {[%emt 00:01:03]} 20. cxb5 {[%clk
00:36:57]} {[%emt 00:02:31]} axb5 {[%clk 01:04:20]} {[%emt 00:00:02]} 21. Qc2
{[%clk 00:32:20]} {[%emt 00:05:07]} Ne7 {[%clk 01:03:14]} {[%emt 00:01:36]} 22.
Be2 {[%clk 00:30:14]} {[%emt 00:02:36]} b4 {[%clk 01:02:56]} {[%emt 00:00:49]}
23. Nd5 {[%clk 00:29:17]} {[%emt 00:01:27]} Nxd5 {[%clk 01:03:14]} {[%emt
00:00:12]} 24. exd5 {[%clk 00:29:40]} {[%emt 00:00:07]} Bf5 {[%clk 01:03:34]}
{[%emt 00:00:10]} 25. Qd2 {[%clk 00:28:24]} {[%emt 00:01:45]} Qf6 {[%clk
01:03:48]} {[%emt 00:00:16]} 26. Nd3 {[%clk 00:27:34]} {[%emt 00:01:21]} Nxd3
{[%clk 01:04:10]} {[%emt 00:00:08]} 27. Bxd3 {[%clk 00:27:57]} {[%emt
00:00:07]} Qd4+ {[%clk 01:04:38]} {[%emt 00:00:02]} 0-1

[Event "30e Open International de Saint Affrique"]
[Site "Saint Affrique, France"]
[Date "2024.07.20"]
[Round "1.2"]
[White "Travadon, Loic"]
[Black "Marino, Thierry"]
[Result "1-0"]
[TimeControl "1h30/40 + 30min + sec/mv"]
[WhiteTitle "IM"]
[WhiteElo "2458"]
[BlackElo "1773"]

1. d4 {[%clk 01:30:45]} {[%emt 00:00:15]} d5 {[%clk 01:30:50]} {[%emt
00:00:10]} 2. Bf4 {[%clk 01:30:49]} {[%emt 00:00:26]} c5 {[%clk 01:30:36]}
{[%emt 00:00:45]} 3. Nc3 {[%clk 01:31:07]} {[%emt 00:00:11]} e6 {[%clk
01:30:24]} {[%emt 00:00:43]} 4. e4 {[%clk 01:26:10]} {[%emt 00:05:26]} Nf6
{[%clk 01:26:21]} {[%emt 00:04:34]} 5. exd5 {[%clk 01:24:50]} {[%emt 00:01:50]}
exd5 {[%clk 01:26:29]} {[%emt 00:00:23]} 6. Nb5 {[%clk 01:23:45]} {[%emt
00:01:34]} Na6 {[%clk 01:25:52]} {[%emt 00:01:07]} 7. Nf3 {[%clk 01:23:51]}
{[%emt 00:00:23]} c4 {[%clk 01:19:51]} {[%emt 00:06:32]} 8. c3 {[%clk
01:23:26]} {[%emt 00:00:54]} Be7 {[%clk 01:16:21]} {[%emt 00:04:00]} 9. Be2
{[%clk 01:23:36]} {[%emt 00:00:20]} Qb6 {[%clk 01:16:31]} {[%emt 00:00:21]} 10.
a4 {[%clk 01:23:57]} {[%emt 00:00:09]} Bd7 {[%clk 01:16:46]} {[%emt 00:00:15]}
11. O-O {[%clk 01:18:49]} {[%emt 00:05:38]} O-O {[%clk 01:15:41]} {[%emt
00:01:35]} 12. b3 {[%clk 01:17:40]} {[%emt 00:01:39]} Nh5 {[%clk 01:04:53]}
{[%emt 00:11:19]} 13. Be3 {[%clk 01:17:18]} {[%emt 00:00:51]} cxb3 {[%clk
01:02:37]} {[%emt 00:02:47]} 14. Ne5 {[%clk 01:16:52]} {[%emt 00:00:56]} Nf6
{[%clk 01:01:45]} {[%emt 00:01:23]} 15. Nxd7 {[%clk 01:16:52]} {[%emt
00:00:29]} Nxd7 {[%clk 01:02:10]} {[%emt 00:00:05]} 16. Qxb3 {[%clk 01:17:16]}
{[%emt 00:00:06]} Nc7 {[%clk 01:00:07]} {[%emt 00:02:33]} 17. a5 {[%clk
01:17:32]} {[%emt 00:00:14]} Qc6 {[%clk 00:59:33]} {[%emt 00:01:03]} 18. Nxc7
{[%clk 01:17:54]} {[%emt 00:00:08]} Qxc7 {[%clk 00:59:59]} {[%emt 00:00:05]} 19.
Qxd5 {[%clk 01:18:14]} {[%emt 00:00:10]} Nf6 {[%clk 00:59:55]} {[%emt
00:00:33]} 20. Qb3 {[%clk 01:18:27]} {[%emt 00:00:18]} Bd6 {[%clk 00:59:44]}
{[%emt 00:00:41]} 21. h3 {[%clk 01:18:36]} {[%emt 00:00:21]} Rab8 {[%clk
00:57:06]} {[%emt 00:03:07]} 22. c4 {[%clk 01:18:45]} {[%emt 00:00:22]} Qd8
{[%clk 00:57:21]} {[%emt 00:00:15]} 23. Bf3 {[%clk 01:18:49]} {[%emt 00:00:25]}
Bc7 {[%clk 00:57:40]} {[%emt 00:00:11]} 24. Qa3 {[%clk 01:18:48]} {[%emt
00:00:31]} Ne8 {[%clk 00:55:01]} {[%emt 00:03:09]} 25. Rfb1 {[%clk 01:18:14]}
{[%emt 00:01:04]} Nd6 {[%clk 00:55:09]} {[%emt 00:00:22]} 26. Qd3 {[%clk
01:18:35]} {[%emt 00:00:08]} Qf6 {[%clk 00:53:10]} {[%emt 00:02:29]} 27. c5
{[%clk 01:14:35]} {[%emt 00:04:31]} Nf5 {[%clk 00:49:14]} {[%emt 00:04:26]} 28.
Rxb7 {[%clk 01:14:24]} {[%emt 00:00:41]} Rxb7 {[%clk 00:48:48]} {[%emt
00:00:57]} 29. Bxb7 {[%emt 00:02:51]} 1-0

[Event "30e Open International de Saint Affrique"]
[Site "Saint Affrique, France"]
[Date "2024.07.20"]
[Round "1.3"]
[White "Walter, Alain"]
[Black "Flear, Glenn"]
[Result "0-1"]
[TimeControl "1h30/40 + 30min + sec/mv"]
[BlackTitle "GM"]
[WhiteElo "1772"]
[BlackElo "2390"]

1. e4 {[%clk 01:30:56]} {[%emt 00:00:03]} e5 {[%clk 01:30:50]} {[%emt
00:00:10]} 2. Nf3 {[%clk 01:31:22]} {[%emt 00:00:04]} Nc6 {[%clk 01:31:11]}
{[%emt 00:00:09]} 3. Bb5 {[%clk 01:31:47]} {[%emt 00:00:06]} a6 {[%clk
01:31:13]} {[%emt 00:00:28]} 4. Ba4 {[%clk 01:32:10]} {[%emt 00:00:07]} Nf6
{[%clk 01:31:22]} {[%emt 00:00:21]} 5. O-O {[%clk 01:32:25]} {[%emt 00:00:15]}
b5 {[%clk 01:31:24]} {[%emt 00:00:28]} 6. Bb3 {[%clk 01:32:49]} {[%emt
00:00:07]} Bc5 {[%clk 01:31:45]} {[%emt 00:00:09]} 7. c3 {[%clk 01:32:41]}
{[%emt 00:00:38]} d6 {[%clk 01:32:01]} {[%emt 00:00:13]} 8. d4 {[%clk
01:32:02]} {[%emt 00:01:10]} Bb6 {[%clk 01:32:18]} {[%emt 00:00:12]} 9. dxe5
{[%clk 01:31:29]} {[%emt 00:01:03]} Nxe5 {[%clk 01:32:06]} {[%emt 00:00:42]} 10.
Nxe5 {[%clk 01:31:45]} {[%emt 00:00:14]} dxe5 {[%clk 01:32:27]} {[%emt
00:00:09]} 11. Qxd8+ {[%clk 01:32:06]} {[%emt 00:00:09]} Kxd8 {[%clk 01:32:50]}
{[%emt 00:00:07]} 12. Bxf7 {[%clk 01:32:10]} {[%emt 00:00:25]} Rf8 {[%clk
01:27:24]} {[%emt 00:05:56]} 13. Bd5 {[%clk 01:25:55]} {[%emt 00:06:45]} Nxd5
{[%clk 01:27:20]} {[%emt 00:00:33]} 14. exd5 {[%clk 01:25:52]} {[%emt
00:00:33]} Bb7 {[%clk 01:27:25]} {[%emt 00:00:25]} 15. c4 {[%clk 01:24:46]}
{[%emt 00:01:36]} bxc4 {[%clk 01:22:11]} {[%emt 00:05:43]} 16. Nc3 {[%clk
01:25:02]} {[%emt 00:00:15]} Kd7 {[%clk 01:20:36]} {[%emt 00:02:03]} 17. Be3
{[%clk 01:25:04]} {[%emt 00:00:31]} Bxe3 {[%clk 01:12:53]} {[%emt 00:08:14]} 18.
fxe3 {[%clk 01:25:26]} {[%emt 00:00:08]} Ke7 {[%clk 01:13:04]} {[%emt
00:00:19]} 19. e4 {[%clk 01:22:43]} {[%emt 00:03:13]} Rad8 {[%clk 01:05:37]}
{[%emt 00:07:57]} 20. Rxf8 {[%clk 01:22:37]} {[%emt 00:00:35]} Rxf8 {[%clk
01:05:53]} {[%emt 00:00:15]} 21. Rc1 {[%clk 01:21:52]} {[%emt 00:01:15]} c6
{[%clk 01:03:18]} {[%emt 00:03:04]} 22. dxc6 {[%clk 01:19:23]} {[%emt
00:03:01]} Bxc6 {[%clk 01:03:42]} {[%emt 00:00:06]} 23. Re1 {[%clk 01:16:41]}
{[%emt 00:03:11]} Kd6 {[%clk 01:02:20]} {[%emt 00:01:51]} 24. Rf1 {[%clk
01:15:21]} {[%emt 00:01:51]} Rxf1+ {[%clk 00:59:00]} {[%emt 00:03:50]} 25. Kxf1
{[%clk 01:15:24]} {[%emt 00:00:28]} Kc5 {[%clk 00:59:23]} {[%emt 00:00:07]} 26.
Kf2 {[%clk 01:12:34]} {[%emt 00:03:20]} Kd4 {[%clk 00:59:43]} {[%emt 00:00:10]}
27. Kf3 {[%clk 01:12:01]} {[%emt 00:01:04]} a5 {[%clk 00:56:23]} {[%emt
00:03:49]} 28. h4 {[%clk 01:08:20]} {[%emt 00:04:12]} Kd3 {[%clk 00:54:26]}
{[%emt 00:02:27]} 0-1

[Event "30e Open International de Saint Affrique"]
[Site "Saint Affrique, France"]
[Date "2024.07.20"]
[Round "1.4"]
[White "Ouakhir, Mehdi"]
[Black "Adami, Pierre-Louis"]
[Result "1-0"]
[TimeControl "1h30/40 + 30min + sec/mv"]
[WhiteTitle "FM"]
[WhiteElo "2210"]
[BlackElo "1771"]

1. d4 {[%clk 01:29:45]} {[%emt 00:01:15]} d5 {[%clk 01:30:47]} {[%emt
00:00:13]} 2. c4 {[%clk 01:29:43]} {[%emt 00:00:32]} e6 {[%clk 01:31:04]}
{[%emt 00:00:13]} 3. Nc3 {[%clk 01:30:07]} {[%emt 00:00:06]} Nf6 {[%clk
01:30:49]} {[%emt 00:00:44]} 4. cxd5 {[%clk 01:30:29]} {[%emt 00:00:07]} exd5
{[%clk 01:31:05]} {[%emt 00:00:16]} 5. Bg5 {[%clk 01:30:51]} {[%emt 00:00:08]}
c6 {[%clk 01:28:58]} {[%emt 00:02:37]} 6. Qc2 {[%clk 01:25:33]} {[%emt
00:05:48]} h6 {[%clk 01:28:59]} {[%emt 00:00:29]} 7. Bxf6 {[%clk 01:24:03]}
{[%emt 00:02:00]} Qxf6 {[%clk 01:14:33]} {[%emt 00:14:56]} 8. e3 {[%clk
01:22:25]} {[%emt 00:02:08]} Bf5 {[%clk 01:08:41]} {[%emt 00:06:20]} 9. Bd3
{[%clk 01:22:36]} {[%emt 00:00:19]} Bxd3 {[%clk 01:09:02]} {[%emt 00:00:10]} 10.
Qxd3 {[%clk 01:22:59]} {[%emt 00:00:07]} Nd7 {[%clk 01:06:11]} {[%emt
00:03:20]} 11. Nf3 {[%clk 01:23:23]} {[%emt 00:00:06]} Bd6 {[%clk 01:01:59]}
{[%emt 00:04:41]} 12. O-O {[%clk 01:19:02]} {[%emt 00:04:52]} O-O {[%clk
01:01:33]} {[%emt 00:00:56]} 13. Rab1 {[%clk 01:19:14]} {[%emt 00:00:20]} a5
{[%clk 01:00:20]} {[%emt 00:01:42]} 14. Qc2 {[%clk 01:16:26]} {[%emt 00:03:18]}
Rfe8 {[%clk 00:56:48]} {[%emt 00:04:02]} 15. a3 {[%clk 01:15:13]} {[%emt
00:01:44]} Nb6 {[%clk 00:50:18]} {[%emt 00:06:55]} 16. Nd2 {[%clk 01:08:42]}
{[%emt 00:07:05]} Rac8 {[%clk 00:43:00]} {[%emt 00:07:47]} 17. Na4 {[%clk
01:04:37]} {[%emt 00:04:35]} Nxa4 {[%clk 00:34:40]} {[%emt 00:08:50]} 18. Qxa4
{[%clk 01:04:59]} {[%emt 00:00:08]} Ra8 {[%clk 00:33:47]} {[%emt 00:01:23]} 19.
Rfc1 {[%clk 01:03:53]} {[%emt 00:01:36]} Rec8 {[%clk 00:33:14]} {[%emt
00:01:03]} 20. Nf3 {[%clk 00:54:46]} {[%emt 00:09:38]} Qe7 {[%clk 00:29:36]}
{[%emt 00:04:07]} 21. Ne1 {[%clk 00:54:28]} {[%emt 00:00:49]} h5 {[%clk
00:26:06]} {[%emt 00:04:01]} 22. Qd1 {[%clk 00:49:59]} {[%emt 00:05:00]} g6
{[%clk 00:26:11]} {[%emt 00:00:24]} 23. b4 {[%clk 00:50:24]} {[%emt 00:00:05]}
axb4 {[%clk 00:25:52]} {[%emt 00:00:50]} 24. axb4 {[%clk 00:50:53]} Bxb4 {[%clk
00:25:05]} {[%emt 00:01:16]} 25. Nd3 {[%clk 00:51:14]} {[%emt 00:00:09]} Bd6
{[%clk 00:24:45]} {[%emt 00:00:51]} 26. Rb6 {[%clk 00:50:06]} {[%emt 00:01:39]}
Bxh2+ {[%clk 00:24:15]} {[%emt 00:01:00]} 27. Kf1 {[%clk 00:50:29]} {[%emt
00:00:07]} Bd6 {[%clk 00:23:22]} {[%emt 00:01:22]} 28. Rcb1 {[%clk 00:50:08]}
{[%emt 00:00:51]} Rab8 {[%clk 00:22:57]} {[%emt 00:00:56]} 29. Qa4 {[%clk
00:48:43]} {[%emt 00:01:55]} Ra8 {[%clk 00:20:49]} {[%emt 00:02:37]} 30. Qd1
{[%clk 00:38:24]} {[%emt 00:10:48]} Rcb8 {[%clk 00:16:46]} {[%emt 00:04:33]} 31.
g4 {[%clk 00:17:59]} {[%emt 00:20:54]} h4 {[%clk 00:15:27]} {[%emt 00:01:49]}
32. Qf3 {[%clk 00:17:55]} {[%emt 00:00:34]} Ra6 {[%clk 00:11:09]} {[%emt
00:04:48]} 33. R6b3 {[%clk 00:15:22]} {[%emt 00:03:03]} b5 {[%clk 00:10:40]}
{[%emt 00:00:58]} 34. Re1 {[%clk 00:13:51]} {[%emt 00:02:01]} Re8 {[%clk
00:10:06]} {[%emt 00:01:04]} 35. Rc1 {[%clk 00:12:29]} {[%emt 00:01:52]} Kg7
{[%clk 00:09:16]} {[%emt 00:01:20]} 36. Rbc3 {[%clk 00:11:46]} {[%emt
00:01:13]} Ra3 {[%clk 00:08:00]} {[%emt 00:01:44]} 37. Rxa3 {[%clk 00:09:28]}
{[%emt 00:02:50]} Bxa3 {[%clk 00:08:14]} {[%emt 00:00:16]} 38. Rxc6 {[%clk
00:09:45]} {[%emt 00:00:13]} Qe4 {[%clk 00:05:18]} {[%emt 00:03:26]} 39. Qxe4
{[%clk 00:09:01]} {[%emt 00:01:14]} dxe4 {[%clk 00:05:31]} {[%emt 00:00:17]} 40.
Ne5 {[%clk 00:09:06]} {[%emt 00:00:25]} b4 {[%clk 00:04:48]} {[%emt 00:01:14]}
41. Rc7 {[%clk 00:09:24]} {[%emt 00:00:11]} Rf8 {[%clk 00:00:35]} {[%emt
00:04:43]} 42. Rb7 {[%clk 00:09:40]} {[%emt 00:00:14]} g5 {[%clk 00:25:16]}
{[%emt 00:05:49]} 43. Kg2 {[%clk 00:38:19]} {[%emt 00:01:52]} Kg8 {[%clk
00:24:58]} {[%emt 00:00:48]} 44. Nd7 {[%clk 00:38:27]} {[%emt 00:00:23]} Rc8
{[%clk 00:23:21]} {[%emt 00:02:06]} 45. Nf6+ {[%clk 00:38:50]} {[%emt
00:00:07]} Kg7 {[%clk 00:23:29]} {[%emt 00:00:22]} 46. Nxe4 {[%clk 00:39:14]}
{[%emt 00:00:06]} Kg6 {[%clk 00:23:17]} {[%emt 00:00:42]} 47. Rb6+ {[%clk
00:39:29]} {[%emt 00:00:16]} Kg7 {[%clk 00:22:55]} {[%emt 00:00:52]} 48. Nxg5
{[%clk 00:39:39]} {[%emt 00:00:20]} Rc3 {[%clk 00:23:11]} {[%emt 00:00:16]} 49.
Ne4 {[%clk 00:40:05]} {[%emt 00:00:03]} Rd3 {[%clk 00:23:19]} {[%emt 00:00:22]}
50. Nc5 {[%clk 00:40:18]} {[%emt 00:00:17]} Rc3 {[%clk 00:23:35]} {[%emt
00:00:13]} 51. Kh3 {[%clk 00:38:57]} {[%emt 00:01:51]} Rc2 {[%clk 00:21:25]}
{[%emt 00:02:40]} 52. f4 {[%clk 00:37:58]} {[%emt 00:01:30]} Rc3 {[%clk
00:21:33]} {[%emt 00:00:21]} 53. g5 {[%clk 00:37:37]} {[%emt 00:00:51]} Rxe3+
{[%clk 00:21:43]} {[%emt 00:00:20]} 54. Kxh4 {[%clk 00:38:01]} {[%emt
00:00:06]} Re1 {[%clk 00:21:37]} {[%emt 00:00:36]} 55. Kg4 {[%clk 00:36:22]}
{[%emt 00:02:09]} Rd1 {[%clk 00:21:47]} {[%emt 00:00:20]} 56. Rb7 {[%clk
00:26:34]} {[%emt 00:10:18]} Kg8 {[%clk 00:21:35]} {[%emt 00:00:42]} 57. Ne4
{[%clk 00:24:49]} {[%emt 00:02:16]} Rxd4 {[%clk 00:21:29]} {[%emt 00:00:35]} 58.
Rb8+ {[%clk 00:25:11]} {[%emt 00:00:08]} Kg7 {[%clk 00:20:24]} {[%emt
00:01:35]} 59. Nf6 {[%clk 00:25:35]} {[%emt 00:00:06]} 1-0

[Event "30e Open International de Saint Affrique"]
[Site "Saint Affrique, France"]
[Date "2024.07.20"]
[Round "1.5"]
[White "Tabutin, Lucas"]
[Black "Buscara, Sevan"]
[Result "0-1"]
[TimeControl "1h30/40 + 30min + sec/mv"]
[BlackTitle "IM"]
[WhiteElo "1771"]
[BlackElo "2187"]

1. e4 {[%emt 00:00:17]} c5 {[%clk 01:30:45]} 2. Nf3 {[%clk 01:31:22]} {[%emt
00:00:05]} Nc6 {[%clk 01:30:56]} {[%emt 00:00:19]} 3. c3 {[%clk 01:31:18]}
{[%emt 00:00:35]} d5 {[%clk 01:29:44]} {[%emt 00:01:42]} 4. exd5 {[%clk
01:31:42]} {[%emt 00:00:06]} Qxd5 {[%clk 01:30:09]} {[%emt 00:00:04]} 5. Na3
{[%clk 01:31:07]} {[%emt 00:01:05]} Bg4 {[%clk 01:23:50]} {[%emt 00:06:49]} 6.
Be2 {[%clk 01:31:14]} {[%emt 00:00:23]} Nf6 {[%clk 01:23:37]} {[%emt 00:00:43]}
7. Nc2 {[%clk 01:29:19]} {[%emt 00:02:25]} e6 {[%clk 01:14:56]} {[%emt
00:09:10]} 8. Ne3 {[%clk 01:28:29]} {[%emt 00:01:20]} Qd6 {[%clk 01:10:42]}
{[%emt 00:04:44]} 9. Nxg4 {[%clk 01:23:52]} {[%emt 00:05:07]} Nxg4 {[%clk
01:10:59]} {[%emt 00:00:13]} 10. d4 {[%clk 01:08:01]} {[%emt 00:16:21]} O-O-O
{[%clk 01:06:35]} {[%emt 00:04:54]} 11. h3 {[%clk 00:56:46]} {[%emt 00:11:45]}
Nh6 {[%clk 01:05:45]} {[%emt 00:01:20]} 12. O-O {[%clk 00:33:56]} {[%emt
00:23:20]} Nf5 {[%clk 01:04:51]} {[%emt 00:01:23]} 13. dxc5 {[%clk 00:31:44]}
{[%emt 00:02:43]} Qxc5 {[%clk 01:04:47]} {[%emt 00:00:34]} 14. Qa4 {[%clk
00:21:53]} {[%emt 00:10:22]} Bd6 {[%clk 01:01:10]} {[%emt 00:04:07]} 15. Nd4
{[%clk 00:15:03]} {[%emt 00:07:20]} Nfxd4 {[%clk 00:59:08]} {[%emt 00:02:32]}
16. cxd4 {[%clk 00:15:19]} {[%emt 00:00:14]} Qxd4 {[%clk 00:58:51]} {[%emt
00:00:46]} 17. Qb3 {[%clk 00:11:54]} {[%emt 00:03:55]} Qe5 {[%clk 00:58:45]}
{[%emt 00:00:35]} 18. g3 {[%clk 00:02:14]} {[%emt 00:10:11]} Qxe2 {[%clk
00:58:55]} {[%emt 00:00:19]} 19. Be3 {[%clk 00:02:30]} {[%emt 00:00:15]} Bc7
{[%clk 00:57:12]} {[%emt 00:02:13]} 20. Rac1 {[%clk 00:01:58]} {[%emt
00:01:01]} Rd3 {[%clk 00:57:13]} {[%emt 00:00:29]} 21. Qa4 {[%clk 00:00:43]}
{[%emt 00:01:46]} Rxe3 {[%clk 00:57:30]} {[%emt 00:00:12]} 22. Rxc6 {[%emt
00:00:39]} bxc6 {[%clk 00:57:12]} {[%emt 00:00:46]} 23. Qxa7 {[%clk 00:00:51]}
{[%emt 00:00:15]} Bxg3 {[%clk 00:53:27]} {[%emt 00:04:14]} 24. Qa8+ {[%clk
00:00:33]} {[%emt 00:00:49]} Kd7 {[%clk 00:53:47]} {[%emt 00:00:09]} 25. Qa7+
{[%clk 00:00:37]} {[%emt 00:00:27]} Bc7 {[%clk 00:54:01]} {[%emt 00:00:16]} 26.
Qd4+ {[%clk 00:00:33]} {[%emt 00:00:34]} Ke7 {[%clk 00:53:27]} {[%emt
00:01:04]} 27. Rd1 {[%clk 00:00:35]} {[%emt 00:00:28]} Rg3+ {[%clk 00:53:07]}
{[%emt 00:00:50]} 0-1

[ePGN "0.1;DGT LiveChess/2.2.6"]

[Event "30e Open International de Saint Affrique"]
[Site "Saint Affrique, France"]
[Date "2024.07.21"]
[Round "2.2"]
[White "Boucher, Camille"]
[Black "Travadon, Loic"]
[Result "0-1"]
[TimeControl "1h30/40 + 30min + sec/mv"]
[BlackTitle "IM"]
[WhiteElo "1920"]
[BlackElo "2458"]

1. d4 {[%clk 01:30:56]} {[%emt 00:00:03]} Nf6 {[%clk 01:30:52]} {[%emt
00:00:08]} 2. c4 {[%clk 01:31:21]} {[%emt 00:00:06]} c5 {[%emt 00:00:15]} 3. d5
{[%clk 01:31:09]} {[%emt 00:00:35]} g6 {[%clk 01:31:35]} {[%emt 00:00:07]} 4.
Nc3 {[%clk 01:31:25]} {[%emt 00:00:15]} Bg7 {[%clk 01:31:57]} {[%emt 00:00:08]}
5. e4 {[%clk 01:31:27]} {[%emt 00:00:29]} d6 {[%clk 01:32:06]} {[%emt
00:00:21]} 6. Nf3 {[%clk 01:30:47]} {[%emt 00:01:10]} O-O {[%clk 01:32:25]}
{[%emt 00:00:10]} 7. Be2 {[%clk 01:30:48]} {[%emt 00:00:29]} e6 {[%clk
01:32:44]} {[%emt 00:00:11]} 8. O-O {[%clk 01:25:27]} {[%emt 00:05:51]} exd5
{[%clk 01:32:41]} {[%emt 00:00:33]} 9. cxd5 {[%clk 01:24:34]} {[%emt 00:01:23]}
Re8 {[%clk 01:31:58]} {[%emt 00:01:12]} 10. Qc2 {[%clk 01:23:41]} {[%emt
00:01:24]} a6 {[%clk 01:28:55]} {[%emt 00:03:34]} 11. a4 {[%clk 01:22:53]}
{[%emt 00:01:18]} Qe7 {[%clk 01:28:28]} {[%emt 00:00:56]} 12. Nd2 {[%clk
01:20:33]} {[%emt 00:02:50]} Nbd7 {[%clk 01:22:34]} {[%emt 00:06:25]} 13. f4
{[%clk 01:15:44]} {[%emt 00:05:19]} Rb8 {[%clk 01:22:39]} {[%emt 00:00:25]} 14.
Bd3 {[%clk 01:14:31]} {[%emt 00:01:43]} Ng4 {[%clk 01:21:28]} {[%emt 00:01:40]}
15. Nf3 {[%clk 01:14:15]} {[%emt 00:00:46]} Bd4+ {[%clk 01:17:54]} {[%emt
00:04:04]} 16. Kh1 {[%clk 01:01:30]} {[%emt 00:13:15]} Ndf6 {[%clk 01:17:19]}
{[%emt 00:01:05]} 17. h3 {[%clk 00:58:49]} {[%emt 00:03:12]} Ne3 {[%clk
01:17:27]} {[%emt 00:00:22]} 18. Bxe3 {[%clk 00:58:36]} {[%emt 00:00:43]} Bxe3
{[%clk 01:17:54]} {[%emt 00:00:03]} 19. Nd2 {[%clk 00:55:58]} {[%emt 00:03:08]}
Nh5 {[%emt 00:07:31]} 20. Rf3 {[%clk 00:54:08]} Bxf4 {[%clk 01:13:00]} {[%emt
00:00:42]} 21. Ne2 {[%clk 00:48:23]} {[%emt 00:06:15]} Be5 {[%clk 01:13:15]}
{[%emt 00:00:15]} 22. Raf1 {[%clk 00:47:12]} {[%emt 00:01:41]} Rf8 {[%clk
01:13:18]} {[%emt 00:00:27]} 23. Nc4 {[%clk 00:45:59]} {[%emt 00:01:43]} Bd7
{[%clk 01:13:01]} {[%emt 00:00:46]} 24. Nb6 {[%clk 00:42:25]} {[%emt 00:04:05]}
Be8 {[%clk 01:11:35]} {[%emt 00:01:56]} 25. g4 {[%clk 00:39:31]} {[%emt
00:03:24]} Nf6 {[%clk 01:10:45]} {[%emt 00:01:20]} 26. Nf4 {[%clk 00:31:04]}
{[%emt 00:08:57]} Nd7 {[%clk 01:10:40]} {[%emt 00:00:34]} 27. a5 {[%clk
00:23:39]} {[%emt 00:07:55]} Nxb6 {[%clk 01:10:35]} {[%emt 00:00:35]} 28. axb6
{[%clk 00:24:01]} {[%emt 00:00:09]} Bd7 {[%clk 01:11:00]} {[%emt 00:00:03]} 29.
Ng2 {[%clk 00:16:03]} {[%emt 00:08:28]} Bb5 {[%clk 01:10:16]} {[%emt 00:01:15]}
30. Ne3 {[%clk 00:14:03]} {[%emt 00:02:30]} Bd4 {[%clk 01:10:19]} {[%emt
00:00:27]} 31. Nc4 {[%clk 00:11:41]} {[%emt 00:02:53]} Rbe8 {[%clk 01:10:32]}
{[%emt 00:00:17]} 32. b3 {[%clk 00:09:15]} {[%emt 00:02:56]} Qd8 {[%clk
01:10:46]} {[%emt 00:00:15]} 33. Rb1 {[%clk 00:06:58]} {[%emt 00:02:47]} Bxc4
{[%clk 01:10:50]} {[%emt 00:00:26]} 34. bxc4 {[%clk 00:07:21]} {[%emt
00:00:08]} Re5 {[%clk 01:11:15]} {[%emt 00:00:05]} 35. Qg2 {[%clk 00:05:52]}
{[%emt 00:01:58]} Kg7 {[%clk 01:09:44]} {[%emt 00:02:01]} 36. Qg3 {[%clk
00:05:36]} {[%emt 00:00:46]} h5 {[%clk 01:09:51]} {[%emt 00:00:22]} 37. gxh5
{[%clk 00:01:58]} {[%emt 00:04:09]} Rxh5 {[%clk 01:10:01]} {[%emt 00:00:20]} 38.
Bf1 {[%clk 00:01:13]} {[%emt 00:01:15]} Be5 {[%clk 01:10:09]} {[%emt 00:00:21]}
39. Qf2 {[%clk 00:01:17]} {[%emt 00:00:26]} Qh4 {[%clk 01:09:25]} {[%emt
00:01:14]} 40. Bg2 {[%clk 00:01:04]} {[%emt 00:00:43]} Qxf2 {[%clk 01:09:34]}
{[%emt 00:00:21]} 41. Rxf2 {[%clk 00:01:27]} {[%emt 00:00:07]} Rh4 {[%clk
01:09:42]} {[%emt 00:00:21]} 42. Rbf1 {[%clk 00:25:07]} {[%emt 00:07:22]} Rh5
{[%clk 01:38:50]} {[%emt 00:01:50]} 43. Kg1 {[%clk 00:23:40]} {[%emt 00:01:57]}
Bd4 {[%clk 01:39:12]} {[%emt 00:00:08]} 44. Kh1 {[%clk 00:23:37]} {[%emt
00:00:33]} Bxf2 {[%clk 01:39:33]} {[%emt 00:00:09]} 45. Rxf2 {[%clk 00:23:58]}
{[%emt 00:00:09]} Re8 {[%clk 01:39:40]} {[%emt 00:00:23]} 46. Kg1 {[%clk
00:24:01]} {[%emt 00:00:27]} Rg5 {[%clk 01:39:49]} {[%emt 00:00:21]} 47. Kf1
{[%clk 00:24:05]} {[%emt 00:00:27]} Rxg2 {[%clk 01:40:02]} {[%emt 00:00:17]} 48.
Kxg2 {[%clk 00:23:57]} {[%emt 00:00:38]} Rxe4 {[%clk 01:40:24]} {[%emt
00:00:08]} 0-1